{"text_format":"1","workbook":"xlsx","n_sheets":3,"sheets":["Sheet1","Sheet2","Sheet3"],"not_rendered":{"charts":0,"images":2,"macros":1,"external_links":0,"defined_names":0,"comments":0,"pivot_tables":0},"unopened":[],"bounds":{"document_bytes":16777216,"sheet_cells":100000,"rows_first":2000,"rows_last":500,"rows_between":2000,"halvings":0,"cell_chars":16384,"cell_head_chars":4096},"cells_cut":0,"cells_raw":0,"read":"whole","date_system":"1900"}

{"sheet":"Sheet1","index":0,"n_rows":71,"n_cols":29,"rows_kept":71,"cut":false,"hidden":false,"merged":[[18,21,18,23],[18,13,18,15],[18,17,18,19]]}
[]
[]
[]
[null,null,null,null,null,null,null,null,null,"ADAPTIVE NORDIC SKI TIMING PROGRAM"]
[]
[]
[]
[]
[null,null,null,null,null,null,null,null,null,"INSTRUCTIONS:"]
[null,null,null,null,null,null,null,null,null,"1. ENTER THE NAME AND ASSIGNED LICENSE NUMBER FOR ALL PARTICIPANTS IN THE "]
[null,null,null,null,null,null,null,null,null,"     APPROPRIATE COLUMNS"]
[null,null,null,null,null,null,null,null,null,"2. USE PULL DOWN MENU TO SELECT CLASSIFICATION FOR EACH PARTICIPANT"]
[null,null,null,null,null,null,null,null,null,"3. ENTER PARTICIPANT'S START AND FINISH TIME UNDER THE RESPECTIVE COLUMNS. "]
[null,null,null,null,null,null,null,null,null,"     H = HOURS, \"M\" = MINUTES, \"S\" = SECONDS"]
[]
[]
[]
[]
[null,null,null,null,null,null,null,null,null,null,null,null,null,"START TIME",null,null,null,"FINISH TIME",null,null,null,"RAW TIME",null,null,null,"ADJUSTED TIME"]
[null,"RANK",null,"LICENSE #",null,"PARTICIPANT NAME",null,"TEAM",null,"CLASSIFICATION",null,"%",null,"H :","M :","S",null,"H :","M :","S",null,"H :","M :","S",null,"H : M : S"]
[null,{"$f":"IF(ISERROR(RANK(Z21,$Z$21:$Z$71,1)),\"-\", RANK(Z21,$Z$21:$Z$71,1))","v":"-"},null,null,null,null,null,null,null,null,null,{"$f":"IF(ISERROR(VLOOKUP(J21,Sheet2!$B$4:$C$28,2,FALSE)),\"\",VLOOKUP(J21,Sheet2!$B$4:$C$28,2,FALSE))","v":""},null,null,null,null,null,null,null,null,null,{"$f":"HOUR(AC21)","v":0},24,33,null,{"$f":"IF(ISERROR(TIME(V21,W21,X21)*L21/100),\"-\", IF(TIME(V21,W21,X21)*L21/100=0,\"-\",(TIME(V21,W21,X21)*L21/100)))","v":"-"},null,{"$f":"IF(B21=\"-\", \"-\", VALUE(B21))","v":"-"},{"$f":"(TIME(R21, S21, T21)-TIME(N21, O21, P21))","v":"00:00:00"}]
[null,"-",null,null,null,null,null,null,null,null,null,{"$f":"IF(ISERROR(VLOOKUP(J22,Sheet2!$B$4:$C$28,2,FALSE)),\"\",VLOOKUP(J22,Sheet2!$B$4:$C$28,2,FALSE))","v":""},null,null,null,null,null,null,null,null,null,0,{"$f":"MINUTE(AC22)","v":0},{"$f":"SECOND(AC22)","v":0},null,"-",null,"-","00:00:00"]
[null,"-",null,null,null,null,null,null,null,null,null,{"$f":"IF(ISERROR(VLOOKUP(J23,Sheet2!$B$4:$C$28,2,FALSE)),\"\",VLOOKUP(J23,Sheet2!$B$4:$C$28,2,FALSE))","v":""},null,null,null,null,null,null,null,null,null,0,0,0,null,"-",null,"-","00:00:00"]
[null,"-",null,null,null,null,null,null,null,null,null,{"$f":"IF(ISERROR(VLOOKUP(J24,Sheet2!$B$4:$C$28,2,FALSE)),\"\",VLOOKUP(J24,Sheet2!$B$4:$C$28,2,FALSE))","v":""},null,null,null,null,null,null,null,null,null,0,0,0,null,"-",null,"-","00:00:00"]
[null,"-",null,null,null,null,null,null,null,null,null,{"$f":"IF(ISERROR(VLOOKUP(J25,Sheet2!$B$4:$C$28,2,FALSE)),\"\",VLOOKUP(J25,Sheet2!$B$4:$C$28,2,FALSE))","v":""},null,null,null,null,null,null,null,null,null,0,0,0,null,"-",null,"-","00:00:00"]
[null,"-",null,null,null,null,null,null,null,null,null,{"$f":"IF(ISERROR(VLOOKUP(J26,Sheet2!$B$4:$C$28,2,FALSE)),\"\",VLOOKUP(J26,Sheet2!$B$4:$C$28,2,FALSE))","v":""},null,null,null,null,null,null,null,null,null,0,0,0,null,"-",null,"-","00:00:00"]
[null,"-",null,null,null,null,null,null,null,null,null,{"$f":"IF(ISERROR(VLOOKUP(J27,Sheet2!$B$4:$C$28,2,FALSE)),\"\",VLOOKUP(J27,Sheet2!$B$4:$C$28,2,FALSE))","v":""},null,null,null,null,null,null,null,null,null,0,0,0,null,"-",null,"-","00:00:00"]
[null,"-",null,null,null,null,null,null,null,null,null,{"$f":"IF(ISERROR(VLOOKUP(J28,Sheet2!$B$4:$C$28,2,FALSE)),\"\",VLOOKUP(J28,Sheet2!$B$4:$C$28,2,FALSE))","v":""},null,null,null,null,null,null,null,null,null,0,0,0,null,"-",null,"-","00:00:00"]
[null,"-",null,null,null,null,null,null,null,null,null,{"$f":"IF(ISERROR(VLOOKUP(J29,Sheet2!$B$4:$C$28,2,FALSE)),\"\",VLOOKUP(J29,Sheet2!$B$4:$C$28,2,FALSE))","v":""},null,null,null,null,null,null,null,null,null,0,0,0,null,"-",null,"-","00:00:00"]
[null,"-",null,null,null,null,null,null,null,null,null,{"$f":"IF(ISERROR(VLOOKUP(J30,Sheet2!$B$4:$C$28,2,FALSE)),\"\",VLOOKUP(J30,Sheet2!$B$4:$C$28,2,FALSE))","v":""},null,null,null,null,null,null,null,null,null,0,0,0,null,"-",null,"-","00:00:00"]
[null,"-",null,null,null,null,null,null,null,null,null,{"$f":"IF(ISERROR(VLOOKUP(J31,Sheet2!$B$4:$C$28,2,FALSE)),\"\",VLOOKUP(J31,Sheet2!$B$4:$C$28,2,FALSE))","v":""},null,null,null,null,null,null,null,null,null,0,0,0,null,"-",null,"-","00:00:00"]
[null,"-",null,null,null,null,null,null,null,null,null,{"$f":"IF(ISERROR(VLOOKUP(J32,Sheet2!$B$4:$C$28,2,FALSE)),\"\",VLOOKUP(J32,Sheet2!$B$4:$C$28,2,FALSE))","v":""},null,null,null,null,null,null,null,null,null,0,0,0,null,"-",null,"-","00:00:00"]
[null,"-",null,null,null,null,null,null,null,null,null,{"$f":"IF(ISERROR(VLOOKUP(J33,Sheet2!$B$4:$C$28,2,FALSE)),\"\",VLOOKUP(J33,Sheet2!$B$4:$C$28,2,FALSE))","v":""},null,null,null,null,null,null,null,null,null,0,0,0,null,"-",null,"-","00:00:00"]
[null,"-",null,null,null,null,null,null,null,null,null,{"$f":"IF(ISERROR(VLOOKUP(J34,Sheet2!$B$4:$C$28,2,FALSE)),\"\",VLOOKUP(J34,Sheet2!$B$4:$C$28,2,FALSE))","v":""},null,null,null,null,null,null,null,null,null,0,0,0,null,"-",null,"-","00:00:00"]
[null,"-",null,null,null,null,null,null,null,null,null,{"$f":"IF(ISERROR(VLOOKUP(J35,Sheet2!$B$4:$C$28,2,FALSE)),\"\",VLOOKUP(J35,Sheet2!$B$4:$C$28,2,FALSE))","v":""},null,null,null,null,null,null,null,null,null,0,0,0,null,"-",null,"-","00:00:00"]
[null,"-",null,null,null,null,null,null,null,null,null,{"$f":"IF(ISERROR(VLOOKUP(J36,Sheet2!$B$4:$C$28,2,FALSE)),\"\",VLOOKUP(J36,Sheet2!$B$4:$C$28,2,FALSE))","v":""},null,null,null,null,null,null,null,null,null,0,0,0,null,"-",null,"-","00:00:00"]
[null,"-",null,null,null,null,null,null,null,null,null,{"$f":"IF(ISERROR(VLOOKUP(J37,Sheet2!$B$4:$C$28,2,FALSE)),\"\",VLOOKUP(J37,Sheet2!$B$4:$C$28,2,FALSE))","v":""},null,null,null,null,null,null,null,null,null,0,0,0,null,"-",null,"-","00:00:00"]
[null,"-",null,null,null,null,null,null,null,null,null,{"$f":"IF(ISERROR(VLOOKUP(J38,Sheet2!$B$4:$C$28,2,FALSE)),\"\",VLOOKUP(J38,Sheet2!$B$4:$C$28,2,FALSE))","v":""},null,null,null,null,null,null,null,null,null,0,0,0,null,"-",null,"-","00:00:00"]
[null,"-",null,null,null,null,null,null,null,null,null,{"$f":"IF(ISERROR(VLOOKUP(J39,Sheet2!$B$4:$C$28,2,FALSE)),\"\",VLOOKUP(J39,Sheet2!$B$4:$C$28,2,FALSE))","v":""},null,null,null,null,null,null,null,null,null,0,0,0,null,"-",null,"-","00:00:00"]
[null,"-",null,null,null,null,null,null,null,null,null,{"$f":"IF(ISERROR(VLOOKUP(J40,Sheet2!$B$4:$C$28,2,FALSE)),\"\",VLOOKUP(J40,Sheet2!$B$4:$C$28,2,FALSE))","v":""},null,null,null,null,null,null,null,null,null,0,0,0,null,"-",null,"-","00:00:00"]
[null,"-",null,null,null,null,null,null,null,null,null,{"$f":"IF(ISERROR(VLOOKUP(J41,Sheet2!$B$4:$C$28,2,FALSE)),\"\",VLOOKUP(J41,Sheet2!$B$4:$C$28,2,FALSE))","v":""},null,null,null,null,null,null,null,null,null,0,0,0,null,"-",null,"-","00:00:00"]
[null,"-",null,null,null,null,null,null,null,null,null,{"$f":"IF(ISERROR(VLOOKUP(J42,Sheet2!$B$4:$C$28,2,FALSE)),\"\",VLOOKUP(J42,Sheet2!$B$4:$C$28,2,FALSE))","v":""},null,null,null,null,null,null,null,null,null,0,0,0,null,"-",null,"-","00:00:00"]
[null,"-",null,null,null,null,null,null,null,null,null,{"$f":"IF(ISERROR(VLOOKUP(J43,Sheet2!$B$4:$C$28,2,FALSE)),\"\",VLOOKUP(J43,Sheet2!$B$4:$C$28,2,FALSE))","v":""},null,null,null,null,null,null,null,null,null,0,0,0,null,"-",null,"-","00:00:00"]
[null,"-",null,null,null,null,null,null,null,null,null,{"$f":"IF(ISERROR(VLOOKUP(J44,Sheet2!$B$4:$C$28,2,FALSE)),\"\",VLOOKUP(J44,Sheet2!$B$4:$C$28,2,FALSE))","v":""},null,null,null,null,null,null,null,null,null,0,0,0,null,"-",null,"-","00:00:00"]
[null,"-",null,null,null,null,null,null,null,null,null,{"$f":"IF(ISERROR(VLOOKUP(J45,Sheet2!$B$4:$C$28,2,FALSE)),\"\",VLOOKUP(J45,Sheet2!$B$4:$C$28,2,FALSE))","v":""},null,null,null,null,null,null,null,null,null,0,0,0,null,"-",null,"-","00:00:00"]
[null,"-",null,null,null,null,null,null,null,null,null,{"$f":"IF(ISERROR(VLOOKUP(J46,Sheet2!$B$4:$C$28,2,FALSE)),\"\",VLOOKUP(J46,Sheet2!$B$4:$C$28,2,FALSE))","v":""},null,null,null,null,null,null,null,null,null,0,0,0,null,"-",null,"-","00:00:00"]
[null,"-",null,null,null,null,null,null,null,null,null,{"$f":"IF(ISERROR(VLOOKUP(J47,Sheet2!$B$4:$C$28,2,FALSE)),\"\",VLOOKUP(J47,Sheet2!$B$4:$C$28,2,FALSE))","v":""},null,null,null,null,null,null,null,null,null,0,0,0,null,"-",null,"-","00:00:00"]
[null,"-",null,null,null,null,null,null,null,null,null,{"$f":"IF(ISERROR(VLOOKUP(J48,Sheet2!$B$4:$C$28,2,FALSE)),\"\",VLOOKUP(J48,Sheet2!$B$4:$C$28,2,FALSE))","v":""},null,null,null,null,null,null,null,null,null,0,0,0,null,"-",null,"-","00:00:00"]
[null,"-",null,null,null,null,null,null,null,null,null,{"$f":"IF(ISERROR(VLOOKUP(J49,Sheet2!$B$4:$C$28,2,FALSE)),\"\",VLOOKUP(J49,Sheet2!$B$4:$C$28,2,FALSE))","v":""},null,null,null,null,null,null,null,null,null,0,0,0,null,"-",null,"-","00:00:00"]
[null,"-",null,null,null,null,null,null,null,null,null,{"$f":"IF(ISERROR(VLOOKUP(J50,Sheet2!$B$4:$C$28,2,FALSE)),\"\",VLOOKUP(J50,Sheet2!$B$4:$C$28,2,FALSE))","v":""},null,null,null,null,null,null,null,null,null,0,0,0,null,"-",null,"-","00:00:00"]
[null,"-",null,null,null,null,null,null,null,null,null,{"$f":"IF(ISERROR(VLOOKUP(J51,Sheet2!$B$4:$C$28,2,FALSE)),\"\",VLOOKUP(J51,Sheet2!$B$4:$C$28,2,FALSE))","v":""},null,null,null,null,null,null,null,null,null,0,0,0,null,"-",null,"-","00:00:00"]
[null,"-",null,null,null,null,null,null,null,null,null,{"$f":"IF(ISERROR(VLOOKUP(J52,Sheet2!$B$4:$C$28,2,FALSE)),\"\",VLOOKUP(J52,Sheet2!$B$4:$C$28,2,FALSE))","v":""},null,null,null,null,null,null,null,null,null,0,0,0,null,"-",null,"-","00:00:00"]
[null,{"$f":"IF(ISERROR(RANK(Z53,$Z$21:$Z$71,1)),\"-\", RANK(Z53,$Z$21:$Z$71,1))","v":"-"},null,null,null,null,null,null,null,null,null,{"$f":"IF(ISERROR(VLOOKUP(J53,Sheet2!$B$4:$C$28,2,FALSE)),\"\",VLOOKUP(J53,Sheet2!$B$4:$C$28,2,FALSE))","v":""},null,null,null,null,null,null,null,null,null,{"$f":"HOUR(AC53)","v":0},{"$f":"MINUTE(AC53)","v":0},{"$f":"SECOND(AC53)","v":0},null,{"$f":"IF(ISERROR(TIME(V53,W53,X53)*L53/100),\"-\", IF(TIME(V53,W53,X53)*L53/100=0,\"-\",(TIME(V53,W53,X53)*L53/100)))","v":"-"},null,{"$f":"IF(B53=\"-\", \"-\", VALUE(B53))","v":"-"},{"$f":"(TIME(R53, S53, T53)-TIME(N53, O53, P53))","v":"00:00:00"}]
[null,"-",null,null,null,null,null,null,null,null,null,{"$f":"IF(ISERROR(VLOOKUP(J54,Sheet2!$B$4:$C$28,2,FALSE)),\"\",VLOOKUP(J54,Sheet2!$B$4:$C$28,2,FALSE))","v":""},null,null,null,null,null,null,null,null,null,0,0,0,null,"-",null,"-","00:00:00"]
[null,"-",null,null,null,null,null,null,null,null,null,{"$f":"IF(ISERROR(VLOOKUP(J55,Sheet2!$B$4:$C$28,2,FALSE)),\"\",VLOOKUP(J55,Sheet2!$B$4:$C$28,2,FALSE))","v":""},null,null,null,null,null,null,null,null,null,0,0,0,null,"-",null,"-","00:00:00"]
[null,"-",null,null,null,null,null,null,null,null,null,{"$f":"IF(ISERROR(VLOOKUP(J56,Sheet2!$B$4:$C$28,2,FALSE)),\"\",VLOOKUP(J56,Sheet2!$B$4:$C$28,2,FALSE))","v":""},null,null,null,null,null,null,null,null,null,0,0,0,null,"-",null,"-","00:00:00"]
[null,"-",null,null,null,null,null,null,null,null,null,{"$f":"IF(ISERROR(VLOOKUP(J57,Sheet2!$B$4:$C$28,2,FALSE)),\"\",VLOOKUP(J57,Sheet2!$B$4:$C$28,2,FALSE))","v":""},null,null,null,null,null,null,null,null,null,0,0,0,null,"-",null,"-","00:00:00"]
[null,"-",null,null,null,null,null,null,null,null,null,{"$f":"IF(ISERROR(VLOOKUP(J58,Sheet2!$B$4:$C$28,2,FALSE)),\"\",VLOOKUP(J58,Sheet2!$B$4:$C$28,2,FALSE))","v":""},null,null,null,null,null,null,null,null,null,0,0,0,null,"-",null,"-","00:00:00"]
[null,"-",null,null,null,null,null,null,null,null,null,{"$f":"IF(ISERROR(VLOOKUP(J59,Sheet2!$B$4:$C$28,2,FALSE)),\"\",VLOOKUP(J59,Sheet2!$B$4:$C$28,2,FALSE))","v":""},null,null,null,null,null,null,null,null,null,0,0,0,null,"-",null,"-","00:00:00"]
[null,"-",null,null,null,null,null,null,null,null,null,{"$f":"IF(ISERROR(VLOOKUP(J60,Sheet2!$B$4:$C$28,2,FALSE)),\"\",VLOOKUP(J60,Sheet2!$B$4:$C$28,2,FALSE))","v":""},null,null,null,null,null,null,null,null,null,0,0,0,null,"-",null,"-","00:00:00"]
[null,"-",null,null,null,null,null,null,null,null,null,{"$f":"IF(ISERROR(VLOOKUP(J61,Sheet2!$B$4:$C$28,2,FALSE)),\"\",VLOOKUP(J61,Sheet2!$B$4:$C$28,2,FALSE))","v":""},null,null,null,null,null,null,null,null,null,0,0,0,null,"-",null,"-","00:00:00"]
[null,"-",null,null,null,null,null,null,null,null,null,{"$f":"IF(ISERROR(VLOOKUP(J62,Sheet2!$B$4:$C$28,2,FALSE)),\"\",VLOOKUP(J62,Sheet2!$B$4:$C$28,2,FALSE))","v":""},null,null,null,null,null,null,null,null,null,0,0,0,null,"-",null,"-","00:00:00"]
[null,"-",null,null,null,null,null,null,null,null,null,{"$f":"IF(ISERROR(VLOOKUP(J63,Sheet2!$B$4:$C$28,2,FALSE)),\"\",VLOOKUP(J63,Sheet2!$B$4:$C$28,2,FALSE))","v":""},null,null,null,null,null,null,null,null,null,0,0,0,null,"-",null,"-","00:00:00"]
[null,"-",null,null,null,null,null,null,null,null,null,{"$f":"IF(ISERROR(VLOOKUP(J64,Sheet2!$B$4:$C$28,2,FALSE)),\"\",VLOOKUP(J64,Sheet2!$B$4:$C$28,2,FALSE))","v":""},null,null,null,null,null,null,null,null,null,0,0,0,null,"-",null,"-","00:00:00"]
[null,"-",null,null,null,null,null,null,null,null,null,{"$f":"IF(ISERROR(VLOOKUP(J65,Sheet2!$B$4:$C$28,2,FALSE)),\"\",VLOOKUP(J65,Sheet2!$B$4:$C$28,2,FALSE))","v":""},null,null,null,null,null,null,null,null,null,0,0,0,null,"-",null,"-","00:00:00"]
[null,"-",null,null,null,null,null,null,null,null,null,{"$f":"IF(ISERROR(VLOOKUP(J66,Sheet2!$B$4:$C$28,2,FALSE)),\"\",VLOOKUP(J66,Sheet2!$B$4:$C$28,2,FALSE))","v":""},null,null,null,null,null,null,null,null,null,0,0,0,null,"-",null,"-","00:00:00"]
[null,"-",null,null,null,null,null,null,null,null,null,{"$f":"IF(ISERROR(VLOOKUP(J67,Sheet2!$B$4:$C$28,2,FALSE)),\"\",VLOOKUP(J67,Sheet2!$B$4:$C$28,2,FALSE))","v":""},null,null,null,null,null,null,null,null,null,0,0,0,null,"-",null,"-","00:00:00"]
[null,"-",null,null,null,null,null,null,null,null,null,{"$f":"IF(ISERROR(VLOOKUP(J68,Sheet2!$B$4:$C$28,2,FALSE)),\"\",VLOOKUP(J68,Sheet2!$B$4:$C$28,2,FALSE))","v":""},null,null,null,null,null,null,null,null,null,0,0,0,null,"-",null,"-","00:00:00"]
[null,"-",null,null,null,null,null,null,null,null,null,{"$f":"IF(ISERROR(VLOOKUP(J69,Sheet2!$B$4:$C$28,2,FALSE)),\"\",VLOOKUP(J69,Sheet2!$B$4:$C$28,2,FALSE))","v":""},null,null,null,null,null,null,null,null,null,0,0,0,null,"-",null,"-","00:00:00"]
[null,"-",null,null,null,null,null,null,null,null,null,{"$f":"IF(ISERROR(VLOOKUP(J70,Sheet2!$B$4:$C$28,2,FALSE)),\"\",VLOOKUP(J70,Sheet2!$B$4:$C$28,2,FALSE))","v":""},null,null,null,null,null,null,null,null,null,0,0,0,null,"-",null,"-","00:00:00"]
[null,"-",null,null,null,null,null,null,null,null,null,{"$f":"IF(ISERROR(VLOOKUP(J71,Sheet2!$B$4:$C$28,2,FALSE)),\"\",VLOOKUP(J71,Sheet2!$B$4:$C$28,2,FALSE))","v":""},null,null,null,null,null,null,null,null,null,0,0,0,null,"-",null,"-","00:00:00"]

{"sheet":"Sheet2","index":1,"n_rows":28,"n_cols":3,"rows_kept":28,"cut":false,"hidden":false,"merged":[]}
[]
[null,"CLASSIFICATION TABLE"]
[null,"CLASSIFICATION","% ADJUSTMENT"]
[null,"LW2 Classic",92]
[null,"LW2 Free",93]
[null,"LW3 Classic",86]
[null,"LW3 Free",87]
[null,"LW4 Classic",97]
[null,"LW4 Free",96]
[null,"LW5 Classic",80]
[null,"LW5 Free",90]
[null,"LW6 Classic",90]
[null,"LW6 Free",95]
[null,"LW7 Classic",80]
[null,"LW7 Free",90]
[null,"LW8 Classic",92]
[null,"LW8 Free",96]
[null,"LW9 Classic",88]
[null,"LW9 Free",89]
[null,"LW10",86]
[null,"LW10.5",87]
[null,"LW11",93]
[null,"LW11.5",96]
[null,"LW12",100]
[null,"B1",88]
[null,"B2",99]
[null,"B3",100]
[null,"OTHER","Type In Value"]

{"sheet":"Sheet3","index":2,"n_rows":0,"n_cols":0,"rows_kept":0,"cut":false,"hidden":false,"merged":[]}